Workbook

Sheet Inputs - General
C2: FY04 | D2: FY05 | E2: FY06 | F2: FY07 | G2: FY08 | H2: FY09 | I2: FY10 | J2: FY11 | K2: FY12 | L2: FY13 | M2: FY14 | N2: FY15
B4: Inflation | C4: 0.03 | D4: 0.02343612335 | E4: 0.02668732782 | F4: 0.03538487339 | G4: 0.02332361516 | H4: 0.04352643242 | I4: 0.0182011224 | J4: 0.02845225682 | K4: 0.03389339513 | L4: 0.01762780156 | M4: 0.025 | N4: 0.0245
B6: Pre-Tax Nominal WACC | C6: 0.0722 | D6: <----from standard control
B8: Capex | C8: 10.4 | D8: 9.7 | E8: 12.14 | F8: 13.83 | G8: 11.2 | H8: 16.93 | I8: 0 | J8: 0 | K8: 0 | L8: 0 | M8: 0
B9: Customer contributions | I9: =9735.78/1000000 -> 0.00973578 | J9: =140499.85/1000000 -> 0.14049985 | K9: =200512.88/1000000 -> 0.20051288 | L9: =123080.82/1000000 -> 0.12308082 | M9: =196762.08/1000000 -> 0.19676208 | N9: <--- John Bedding we need data for FY10 to FY14
B10: Proceeds from sale of assets | M10: =538560/1000000 -> 0.53856
B11: Net capex | C11: =C8-C9-C10 -> 10.4 | D11: =D8-D9-D10 -> 9.7 | E11: 12.14 | F11: 13.83 | G11: 11.2 | H11: 16.93 | I11: -0.00973578 | J11: -0.14049985 | K11: -0.20051288 | L11: -0.12308082 | M11: -0.73532208 | N11: <--- we could add half WACC to capital additions but at this stage intend to keep it simple
B13: RAB remaining life 2003/04 year end (years) | C13: 16.2 | D13: <--- from 2010 determination
B14: New capex life (years) | C14: 20 | D14: <--- from 2010 determination
B16: RAB value June 2004 ($m nominal) | C16: 97.8 | D16: <--- from 2010 determination
B17: RAB value June 2009 ($m nominal) | C17: =RAB -> 140.8815482 | D17: <--- from 2010 determination
B18: RAB value June 2014 ($m nominal) | C18: ='Calc - RFM 2010 - 2014'!G9 -> 101.6016885

Sheet Calc - RFM 2004 -2009
A2: $ m nominal | C2: FY05 | D2: FY06 | E2: FY07 | F2: FY08 | G2: FY09
A4: RAB roll forward
A5: Opening | C5: =OpeningRAB2004 -> 97.8 | D5: =C9 -> 103.7550158 | E5: =D9 -> 111.9656036 | F5: =E9 -> 122.2290412 | G5: =F9 -> 127.7377151
A6: Depreciation | C6: =C15+C23+C31+C39+C47 -> 6.037037037 | D6: =D15+D23+D31+D39+D47 -> 6.698356304 | E6: =E15+E23+E31+E39+E47 -> 7.528451166 | F6: =F15+F23+F31+F39+F47 -> 8.542149226 | G6: =G15+G23+G31+G39+G47 -> 9.346133912
A7: New Capex | C7: =Capex05 -> 9.7 | D7: =Capex06 -> 12.14 | E7: =Capex07 -> 13.83 | F7: =Capex08 -> 11.2 | G7: =Capex09 -> 16.93
A8: Indexation | C8: =C5*CPIFY05 -> 2.292052863 | D8: =D5*CPIFY06 -> 2.768944121 | E8: =E5*CPIFY07 -> 3.961888708 | F8: =F5*CPIFY08 -> 2.850823118 | G8: =G5*CPIFY09 -> 5.559967022
A9: Closing RAB value | C9: =C5-C6+C7+C8 -> 103.7550158 | D9: =D5-D6+D7+D8 -> 111.9656036 | E9: =E5-E6+E7+E8 -> 122.2290412 | F9: =F5-F6+F7+F8 -> 127.7377151 | G9: =G5-G6+G7+G8 -> 140.8815482
A10: Implied remaining life | C10: =C5/C6 -> 16.2 | D10: =D5/D6 -> 15.48962329 | E10: =E5/E6 -> 14.87232914 | F10: =F5/F6 -> 14.30893303 | G10: =G5/G6 -> 13.66743899
A12: Depreciation for capex pre-2004 | J12: Opening remaining life for next period (FY10)
A13: Average remaining life (years) | C13: =OpeningRABRemLife05 -> 16.2 | D13: =C13-1 -> 15.2 | E13: =D13-1 -> 14.2 | F13: =E13-1 -> 13.2 | G13: =F13-1 -> 12.2 | J13: Item | K13: Closing value x (rem life -1) | L13: Closing value
A14: Opening | C14: =OpeningRAB2004 -> 97.8 | D14: =C18 -> 94.05501583 | E14: =D18 -> 90.37726288 | F14: =E18 -> 87.21065491 | G14: =F18 -> 82.63785486 | J14: RAB | K14: =G18*(G13-1) -> 889.9653415 | L14: =G18 -> 79.46119121
A15: Depreciation | C15: =C14/C13 -> 6.037037037 | D15: =D14/D13 -> 6.187829989 | E15: =E14/E13 -> 6.364595977 | F15: =F14/F13 -> 6.606867796 | G15: =G14/G13 -> 6.773594661 | J15: 2005 capex | K15: =G26*(G21-1) -> 131.3954168 | L15: =G26 -> 8.759694452
A16: New | C16: 0 | D16: 0 | E16: 0 | F16: 0 | G16: 0 | J16: 2006 capex | K16: =G34*(G29-1) -> 181.9113013 | L16: =G34 -> 11.36945633
A17: Indexation | C17: =C14*CPIFY05 -> 2.292052863 | D17: =D14*CPIFY06 -> 2.510077041 | E17: =E14*CPIFY07 -> 3.197988004 | F17: =F14*CPIFY08 -> 2.034067753 | G17: =G14*CPIFY09 -> 3.596931005 | J17: 2007 capex | K17: =G42*(G37-1) -> 225.4741253 | L17: =G42 -> 13.26318384
A18: Closing | C18: =C14-C15+C16+C17 -> 94.05501583 | D18: =D14-D15+D16+D17 -> 90.37726288 | E18: =E14-E15+E16+E17 -> 87.21065491 | F18: =F14-F15+F16+F17 -> 82.63785486 | G18: =G14-G15+G16+G17 -> 79.46119121 | J18: 2008 capex | K18: =G50*(G45-1) -> 199.7644025 | L18: =G50 -> 11.09802236
J19: 2009 capex | K19: =G58*(G53-1) -> 321.67 | L19: =G58 -> 16.93
A20: Depreciation for capex 2005 | J20: Total | K20: =SUM(K14:K19) -> 1950.180587 | L20: =SUM(L14:L19) -> 140.8815482
A21: Average remaining life (years) | C21: =NewCapexStandardLife -> 20 | D21: =C21-1 -> 19 | E21: =D21-1 -> 18 | F21: =E21-1 -> 17 | G21: =F21-1 -> 16 | J21: Opening remaining life for next period | L21: =K20/L20 -> 13.84269702
A22: Opening | C22: 0 | D22: =C26 -> 9.7 | E22: =D26 -> 9.448340764 | F22: =E26 -> 9.257761286 | G22: =F26 -> 8.929111554
A23: Depreciation | C23: 0 | D23: =C26/D21 -> 0.5105263158 | E23: =D26/E21 -> 0.5249078202 | F23: =E26/F21 -> 0.5445741933 | G23: =F26/G21 -> 0.5580694721
A24: New | C24: =Capex05 -> 9.7 | D24: 0 | E24: 0 | F24: 0 | G24: 0
A25: Indexation | C25: =C22*CPIFY05 -> 0 | D25: =D22*CPIFY06 -> 0.2588670799 | E25: =E22*CPIFY07 -> 0.3343283416 | F25: =F22*CPIFY08 -> 0.2159244615 | G25: =G22*CPIFY09 -> 0.3886523706
A26: Closing | C26: =C22-C23+C24+C25 -> 9.7 | D26: =D22-D23+D24+D25 -> 9.448340764 | E26: =E22-E23+E24+E25 -> 9.257761286 | F26: =F22-F23+F24+F25 -> 8.929111554 | G26: =G22-G23+G24+G25 -> 8.759694452
A28: Depreciation for capex 2006
A29: Average remaining life (years) | D29: =NewCapexStandardLife -> 20 | E29: =D29-1 -> 19 | F29: =E29-1 -> 18 | G29: =F29-1 -> 17
A30: Opening | D30: 0 | E30: =D34 -> 12.14 | F30: =E34 -> 11.93062499 | G30: =F34 -> 11.5460778
A31: Depreciation | D31: 0 | E31: =D34/E29 -> 0.6389473684 | F31: =E34/F29 -> 0.6628124997 | G31: =F34/G29 -> 0.6791810471
A32: New | D32: =Capex06 -> 12.14 | E32: 0 | F32: 0 | G32: 0
A33: Indexation | D33: =D30*CPIFY06 -> 0 | E33: =E30*CPIFY07 -> 0.4295723629 | F33: =F30*CPIFY08 -> 0.278265306 | G33: =G30*CPIFY09 -> 0.5025595751
A34: Closing | D34: =D30-D31+D32+D33 -> 12.14 | E34: =E30-E31+E32+E33 -> 11.93062499 | F34: =F30-F31+F32+F33 -> 11.5460778 | G34: =G30-G31+G32+G33 -> 11.36945633
A36: Depreciation for capex 2007
A37: Average remaining life (years) | E37: =NewCapexStandardLife -> 20 | F37: =E37-1 -> 19 | G37: =F37-1 -> 18
A38: Opening | E38: 0 | F38: =E42 -> 13.83 | G38: =F42 -> 13.42467086
A39: Depreciation | E39: 0 | F39: =E42/F37 -> 0.7278947368 | G39: =F42/G37 -> 0.7458150478
A40: New | E40: =Capex07 -> 13.83 | F40: 0 | G40: 0
A41: Indexation | E41: 0 | F41: =F38*CPIFY08 -> 0.3225655977 | G41: =G38*CPIFY09 -> 0.5843280289
A42: Closing | E42: =E38-E39+E40+E41 -> 13.83 | F42: =F38-F39+F40+F41 -> 13.42467086 | G42: =G38-G39+G40+G41 -> 13.26318384
A44: Depreciation for capex 2008
A45: Average remaining life (years) | F45: =NewCapexStandardLife -> 20 | G45: =F45-1 -> 19
A46: Opening | F46: 0 | G46: =F50 -> 11.2
A47: Depreciation | F47: 0 | G47: =F50/G45 -> 0.5894736842
A48: New | F48: =Capex08 -> 11.2 | G48: 0
A49: Indexation | F49: =F46*'Inputs - General'!F$4 -> 0 | G49: =G46*CPIFY09 -> 0.4874960431
A50: Closing | F50: =F46-F47+F48+F49 -> 11.2 | G50: =G46-G47+G48+G49 -> 11.09802236
A52: Depreciation for capex 2009
A53: Average remaining life (years) | G53: =NewCapexStandardLife -> 20
A54: Opening | G54: 0
A55: Depreciation | G55: 0
A56: New | G56: =Capex09 -> 16.93
A57: Indexation | G57: =G54*'Inputs - General'!G$4 -> 0
A58: Closing | G58: =G54-G55+G56+G57 -> 16.93

Sheet Calc - RFM 2010 - 2014
A2: $ m nominal | C2: FY10 | D2: FY11 | E2: FY12 | F2: FY13 | G2: FY14
A4: RAB roll forward
A5: Opening | C5: ='Calc - RFM 2004 -2009'!L20 -> 140.8815482 | D5: =C9 -> 133.2586954 | E5: =D9 -> 126.5332369 | F5: =E9 -> 119.9321265 | G5: =F9 -> 110.8487822
A6: Depreciation | C6: =C15+C23+C31+C39+C47 -> 10.17731935 | D6: =D15+D23+D31+D39+D47 -> 10.37646923 | E6: =E15+E23+E31+E39+E47 -> 10.68923851 | F6: =F15+F23+F31+F39+F47 -> 11.07440327 | G6: =G15+G23+G31+G39+G47 -> 11.28299116
A7: New Capex | C7: =Capex10 -> -0.00973578 | D7: =Capex11 -> -0.14049985 | E7: =Capex12 -> -0.20051288 | F7: =Capex13 -> -0.12308082 | G7: =Capex14 -> -0.73532208
A8: Indexation | C8: =C5*CPIFY10 -> 2.564202303 | D8: =D5*CPIFY11 -> 3.791510623 | E8: =E5*CPIFY12 -> 4.288640996 | F8: =F5*CPIFY13 -> 2.114139727 | G8: =G5*CPIFY14 -> 2.771219554
A9: Closing RAB value | C9: =C5-C6+C7+C8 -> 133.2586954 | D9: =D5-D6+D7+D8 -> 126.5332369 | E9: =E5-E6+E7+E8 -> 119.9321265 | F9: =F5-F6+F7+F8 -> 110.8487822 | G9: =G5-G6+G7+G8 -> 101.6016885
A10: Implied remaining life | C10: =C5/C6 -> 13.84269702 | D10: =D5/D6 -> 12.84239296 | E10: =E5/E6 -> 11.83744163 | F10: =F5/F6 -> 10.82966943 | G10: =G5/G6 -> 9.824414517
A12: Depreciation for capex pre-2010 | J12: Opening remaining life for next period (FY10)
A13: Average remaining life (years) | C13: ='Calc - RFM 2004 -2009'!L21 -> 13.84269702 | D13: =C13-1 -> 12.84269702 | E13: =D13-1 -> 11.84269702 | F13: =E13-1 -> 10.84269702 | G13: =F13-1 -> 9.84269702 | J13: Item | K13: Closing value x (rem life -1) | L13: Closing value
A14: Opening | C14: =C5 -> 140.8815482 | D14: =C18 -> 133.2684311 | E14: =D18 -> 126.6832371 | F14: =E18 -> 120.2798011 | G14: =F18 -> 111.306907 | J14: RAB | K14: =G18*(G13-1) -> 908.861257 | L14: =G18 -> 102.7810016
A15: Depreciation | C15: =C14/C13 -> 10.17731935 | D15: =D14/D13 -> 10.37698164 | E15: =E14/E13 -> 10.69716104 | F15: =F14/F13 -> 11.0931626 | G15: =G14/G13 -> 11.308578 | J15: 2006 capex | K15: =G26*(G21-1) -> -0.1286623789 | L15: =G26 -> -0.008577491929
A16: New | C16: 0 | D16: 0 | E16: 0 | F16: 0 | G16: 0 | J16: 2007 capex | K16: =G34*(G29-1) -> -2.050429709 | L16: =G34 -> -0.1281518568
A17: Indexation | C17: =C14*CPIFY10 -> 2.564202303 | D17: =D14*CPIFY11 -> 3.791787628 | E17: =E14*CPIFY12 -> 4.293725013 | F17: =F14*CPIFY13 -> 2.120268466 | G17: =G14*CPIFY14 -> 2.782672674 | J17: 2008 capex | K17: =G42*(G37-1) -> -3.188891448 | L17: =G42 -> -0.1875818499
A18: Closing | C18: =C14-C15+C16+C17 -> 133.2684311 | D18: =D14-D15+D16+D17 -> 126.6832371 | E18: =E14-E15+E16+E17 -> 120.2798011 | F18: =F14-F15+F16+F17 -> 111.306907 | G18: =G14-G15+G16+G17 -> 102.7810016 | J18: 2009 capex | K18: =G50*(G45-1) -> -2.154238247 | L18: =G50 -> -0.1196799026
J19: 2010 capex | K19: =G58*(G53-1) -> -13.97111952 | L19: =G58 -> -0.73532208
A20: Depreciation for capex 2010 | J20: Total | K20: =SUM(K14:K19) -> 887.3679157 | L20: =SUM(L14:L19) -> 101.6016885
A21: Average remaining life (years) | C21: =NewCapexStandardLife -> 20 | D21: =C21-1 -> 19 | E21: =D21-1 -> 18 | F21: =E21-1 -> 17 | G21: =F21-1 -> 16 | J21: Opening remaining life for next period | L21: =K20/L20 -> 8.733791034
A22: Opening | C22: 0 | D22: =C26 -> -0.00973578 | E22: =D26 -> -0.009500375439 | F22: =E26 -> -0.009294576782 | G22: =F26 -> -0.008911679927
A23: Depreciation | C23: 0 | D23: =C26/D21 -> -0.0005124094737 | E23: =D26/E21 -> -0.0005277986355 | F23: =E26/F21 -> -0.0005467398107 | G23: =F26/G21 -> -0.0005569799954
A24: New | C24: =Capex10 -> -0.00973578 | D24: 0 | E24: 0 | F24: 0 | G24: 0
A25: Indexation | C25: =C22*CPIFY10 -> 0 | D25: =D22*CPIFY11 -> -0.0002770049129 | E25: =E22*CPIFY12 -> -0.0003219999787 | F25: =F22*CPIFY13 -> -0.0001638429551 | G25: =G22*CPIFY14 -> -0.0002227919982
A26: Closing | C26: =C22-C23+C24+C25 -> -0.00973578 | D26: =D22-D23+D24+D25 -> -0.009500375439 | E26: =E22-E23+E24+E25 -> -0.009294576782 | F26: =F22-F23+F24+F25 -> -0.008911679927 | G26: =G22-G23+G24+G25 -> -0.008577491929
A28: Depreciation for capex 2011
A29: Average remaining life (years) | D29: =NewCapexStandardLife -> 20 | E29: =D29-1 -> 19 | F29: =E29-1 -> 18 | G29: =F29-1 -> 17
A30: Opening | D30: 0 | E30: =D34 -> -0.14049985 | F30: =E34 -> -0.137867138 | G30: =F34 -> -0.1326381471
A31: Depreciation | D31: 0 | E31: =D34/E29 -> -0.007394728947 | F31: =E34/F29 -> -0.007659285444 | G31: =F34/G29 -> -0.007802243947
A32: New | D32: =Capex11 -> -0.14049985 | E32: 0 | F32: 0 | G32: 0
A33: Indexation | D33: =D30*CPIFY11 -> 0 | E33: =E30*CPIFY12 -> -0.004762016932 | F33: =F30*CPIFY13 -> -0.00243029455 | G33: =G30*CPIFY14 -> -0.003315953677
A34: Closing | D34: =D30-D31+D32+D33 -> -0.14049985 | E34: =E30-E31+E32+E33 -> -0.137867138 | F34: =F30-F31+F32+F33 -> -0.1326381471 | G34: =G30-G31+G32+G33 -> -0.1281518568
A36: Depreciation for capex 2012
A37: Average remaining life (years) | E37: =NewCapexStandardLife -> 20 | F37: =E37-1 -> 19 | G37: =F37-1 -> 18
A38: Opening | E38: 0 | F38: =E42 -> -0.20051288 | G38: =F42 -> -0.1934941718
A39: Depreciation | E39: 0 | F39: =E42/F37 -> -0.01055330947 | G39: =F42/G37 -> -0.01074967621
A40: New | E40: =Capex12 -> -0.20051288 | F40: 0 | G40: 0
A41: Indexation | E41: =E38*CPIFY12 -> 0 | F41: =F38*CPIFY13 -> -0.003534601259 | G41: =G38*CPIFY14 -> -0.004837354295
A42: Closing | E42: =E38-E39+E40+E41 -> -0.20051288 | F42: =F38-F39+F40+F41 -> -0.1934941718 | G42: =G38-G39+G40+G41 -> -0.1875818499
A44: Depreciation for capex 2013
A45: Average remaining life (years) | F45: =NewCapexStandardLife -> 20 | G45: =F45-1 -> 19
A46: Opening | F46: 0 | G46: =F50 -> -0.12308082
A47: Depreciation | F47: 0 | G47: =F50/G45 -> -0.006477937895
A48: New | F48: =Capex13 -> -0.12308082 | G48: 0
A49: Indexation | F49: =F46*CPIFY13 -> 0 | G49: =G46*CPIFY14 -> -0.0030770205
A50: Closing | F50: =F46-F47+F48+F49 -> -0.12308082 | G50: =G46-G47+G48+G49 -> -0.1196799026
A52: Depreciation for capex 2014
A53: Average remaining life (years) | G53: =NewCapexStandardLife -> 20
A54: Opening | G54: 0
A55: Depreciation | G55: 0
A56: New | G56: =Capex14 -> -0.73532208
A57: Indexation | G57: =G54*CPIFY14 -> 0
A58: Closing | G58: =G54-G55+G56+G57 -> -0.73532208
